[Event "Titled Tuesday Blitz June 28 Late 2022"]
[White "Bluebaum, Matthias"]
[Black "Jorajuria Mendoza, Algol"]
[WhiteFideId "24651516"]
[BlackFideId "5128897"]
[WhiteElo "2556"]
[BlackElo "1600"]
[Result "1-0"]
[Round "08"]
[TimeControl "180+1"]
[Date "2022.06.28"]
[WhiteClock "0:00:35"]
[BlackClock "0:00:03"]

1. d4 {[%clk 0:03:00]}  Nf6 {[%clk 0:02:58]} 2. c4 {[%clk 0:03:01]}  e6 {[%clk 0:02:58]} 3. Nc3 {[%clk 0:03:00]}  d5 {[%clk 0:02:59]} 4. cxd5 {[%clk 0:03:01]}  exd5 {[%clk 0:02:59]} 5. Bg5 {[%clk 0:03:01]}  Be7 {[%clk 0:02:58]} 6. e3 {[%clk 0:03:01]}  Nbd7 {[%clk 0:02:57]} 7. Bd3 {[%clk 0:03:02]}  c6 {[%clk 0:02:57]} 8. h3 {[%clk 0:03:02]}  Ne4 {[%clk 0:02:32]} 9. Bxe7 {[%clk 0:02:58]}  Qxe7 {[%clk 0:02:33]} 10. Bxe4 {[%clk 0:02:59]}  dxe4 {[%clk 0:02:33]} 11. Qg4 {[%clk 0:03:00]}  Nf6 {[%clk 0:01:42]} 12. Qxg7 {[%clk 0:02:58]}  Rg8 {[%clk 0:01:42]} 13. Qh6 {[%clk 0:02:58]}  Rxg2 {[%clk 0:01:39]} 14. Nge2 {[%clk 0:02:58]}  Rg6 {[%clk 0:01:33]} 15. Qh4 {[%clk 0:02:57]}  Bf5 {[%clk 0:01:26]} 16. O-O-O {[%clk 0:02:50]}  O-O-O {[%clk 0:01:23]} 17. Nf4 {[%clk 0:02:50]}  Rg7 {[%clk 0:01:19]} 18. Nh5 {[%clk 0:02:31]}  Rg6 {[%clk 0:01:18]} 19. Ng3 {[%clk 0:02:31]}  Qe6 {[%clk 0:01:10]} 20. Qf4 {[%clk 0:02:30]}  Bxh3 {[%clk 0:01:03]} 21. Rdg1 {[%clk 0:01:54]}  Rdg8 {[%clk 0:00:46]} 22. Qh4 {[%clk 0:01:38]}  Bg4 {[%clk 0:00:40]} 23. Kb1 {[%clk 0:01:18]}  Bf3 {[%clk 0:00:39]} 24. Rh3 {[%clk 0:01:14]}  Ng4 {[%clk 0:00:32]} 25. Nh5 {[%clk 0:00:48]}  Nxf2 {[%clk 0:00:22]} 26. Rxg6 {[%clk 0:00:46]}  Rxg6 {[%clk 0:00:16]} 27. Nf4 {[%clk 0:00:46]}  Rg1+ {[%clk 0:00:15]} 28. Kc2 {[%clk 0:00:46]}  Bd1+ {[%clk 0:00:13]} 29. Nxd1 {[%clk 0:00:41]}  Qc4+ {[%clk 0:00:07]} 30. Nc3 {[%clk 0:00:41]}  Nxh3 {[%clk 0:00:03]} 31. Qxh3+ {[%clk 0:00:42]}  Kc7 {[%clk 0:00:03]} 32. Qh2 {[%clk 0:00:41]}  Qf1 {[%clk 0:00:03]} 33. Nfe2+ {[%clk 0:00:35]} 1-0


[Site "https://www.chess.com"]

[Event "Titled Tuesday Blitz June 28 Late 2022"]
[White "Bobadilla Viera, Jorge Samuel"]
[Black "Zhu, Jiner"]
[WhiteFideId "3906353"]
[BlackFideId "8608059"]
[WhiteElo "2202"]
[BlackElo "2281"]
[Result "0-1"]
[Round "08"]
[TimeControl "180+1"]
[Date "2022.06.28"]
[WhiteClock "0:00:02"]
[BlackClock "0:00:06"]

1. e4 {[%clk 0:02:48]}  e5 {[%clk 0:02:57]} 2. Nf3 {[%clk 0:02:48]}  Nf6 {[%clk 0:02:57]} 3. Nxe5 {[%clk 0:02:48]}  d6 {[%clk 0:02:57]} 4. Nf3 {[%clk 0:02:48]}  Nxe4 {[%clk 0:02:57]} 5. d4 {[%clk 0:02:48]}  d5 {[%clk 0:02:57]} 6. Bd3 {[%clk 0:02:49]}  Bd6 {[%clk 0:02:58]} 7. O-O {[%clk 0:02:49]}  O-O {[%clk 0:02:58]} 8. c4 {[%clk 0:02:49]}  c6 {[%clk 0:02:59]} 9. Re1 {[%clk 0:02:49]}  Bf5 {[%clk 0:02:59]} 10. Qc2 {[%clk 0:02:42]}  Nd7 {[%clk 0:02:20]} 11. Nc3 {[%clk 0:02:38]}  Ndf6 {[%clk 0:02:11]} 12. Ne5 {[%clk 0:01:59]}  c5 {[%clk 0:01:15]} 13. cxd5 {[%clk 0:01:50]}  Nxc3 {[%clk 0:01:13]} 14. Bxf5 {[%clk 0:01:48]}  Ncxd5 {[%clk 0:01:13]} 15. dxc5 {[%clk 0:01:44]}  Bxe5 {[%clk 0:01:01]} 16. Rxe5 {[%clk 0:01:41]}  Nb4 {[%clk 0:00:58]} 17. Qe2 {[%clk 0:01:38]}  Nc6 {[%clk 0:00:58]} 18. Bg5 {[%clk 0:01:24]}  Nxe5 {[%clk 0:00:57]} 19. Qxe5 {[%clk 0:01:25]}  Re8 {[%clk 0:00:48]} 20. Qg3 {[%clk 0:01:21]}  Qd4 {[%clk 0:00:47]} 21. h4 {[%clk 0:01:17]}  Ne4 {[%clk 0:00:42]} 22. Bxe4 {[%clk 0:01:16]}  Rxe4 {[%clk 0:00:40]} 23. h5 {[%clk 0:01:12]}  Rg4 {[%clk 0:00:36]} 24. Qe3 {[%clk 0:01:11]}  Qxe3 {[%clk 0:00:35]} 25. Bxe3 {[%clk 0:01:11]}  Rd8 {[%clk 0:00:34]} 26. h6 {[%clk 0:01:10]}  Rc4 {[%clk 0:00:32]} 27. hxg7 {[%clk 0:01:03]}  Kxg7 {[%clk 0:00:31]} 28. Kf1 {[%clk 0:01:02]}  Rc2 {[%clk 0:00:25]} 29. b4 {[%clk 0:00:58]}  Rd3 {[%clk 0:00:24]} 30. a4 {[%clk 0:00:56]}  Rb3 {[%clk 0:00:21]} 31. b5 {[%clk 0:00:56]}  Rb4 {[%clk 0:00:20]} 32. g3 {[%clk 0:00:52]}  a6 {[%clk 0:00:16]} 33. c6 {[%clk 0:00:40]}  axb5 {[%clk 0:00:13]} 34. axb5 {[%clk 0:00:30]}  bxc6 {[%clk 0:00:14]} 35. bxc6 {[%clk 0:00:28]}  Rxc6 {[%clk 0:00:15]} 36. Ra5 {[%clk 0:00:28]}  Rc2 {[%clk 0:00:14]} 37. Kg2 {[%clk 0:00:28]}  h6 {[%clk 0:00:14]} 38. Ra6 {[%clk 0:00:26]}  f6 {[%clk 0:00:13]} 39. Ra5 {[%clk 0:00:21]}  Kg6 {[%clk 0:00:14]} 40. Ra6 {[%clk 0:00:22]}  Re4 {[%clk 0:00:14]} 41. Kf3 {[%clk 0:00:22]}  Rec4 {[%clk 0:00:12]} 42. Ra8 {[%clk 0:00:20]}  Rc6 {[%clk 0:00:12]} 43. Ra5 {[%clk 0:00:20]}  Re6 {[%clk 0:00:10]} 44. g4 {[%clk 0:00:20]}  Rec6 {[%clk 0:00:09]} 45. Rh5 {[%clk 0:00:20]}  Kg7 {[%clk 0:00:08]} 46. Rxh6 {[%clk 0:00:19]}  Ra2 {[%clk 0:00:08]} 47. Rh5 {[%clk 0:00:19]}  Ra4 {[%clk 0:00:08]} 48. Rf5 {[%clk 0:00:18]}  Re6 {[%clk 0:00:07]} 49. Bf4 {[%clk 0:00:16]}  Rc6 {[%clk 0:00:06]} 50. Be3 {[%clk 0:00:15]}  Kg6 {[%clk 0:00:06]} 51. Bf4 {[%clk 0:00:14]}  Rcc4 {[%clk 0:00:06]} 52. Kg3 {[%clk 0:00:13]}  Re4 {[%clk 0:00:06]} 53. Kf3 {[%clk 0:00:12]}  Reb4 {[%clk 0:00:06]} 54. Kg3 {[%clk 0:00:12]}  Rb1 {[%clk 0:00:06]} 55. Kg2 {[%clk 0:00:06]}  Rd1 {[%clk 0:00:05]} 56. f3 {[%clk 0:00:03]}  Rd3 {[%clk 0:00:04]} 57. Bg3 {[%clk 0:00:02]}  Ra2+ {[%clk 0:00:04]} 58. Kh3 {[%clk 0:00:02]}  Raa3 {[%clk 0:00:04]} 59. Kg2 {[%clk 0:00:02]}  Rdb3 {[%clk 0:00:03]} 60. Bh4 {[%clk 0:00:02]}  Ra2+ {[%clk 0:00:04]} 61. Kg3 {[%clk 0:00:02]}  Ra6 {[%clk 0:00:04]} 62. Rc5 {[%clk 0:00:01]}  Rab6 {[%clk 0:00:04]} 63. Rf5 {[%clk 0:00:02]}  Re6 {[%clk 0:00:05]} 64. Kf4 {[%clk 0:00:03]}  Rb4+ {[%clk 0:00:05]} 65. Kg3 {[%clk 0:00:03]}  Ra4 {[%clk 0:00:05]} 66. Rh5 {[%clk 0:00:03]}  Ra3 {[%clk 0:00:05]} 67. Rf5 {[%clk 0:00:04]}  Rc6 {[%clk 0:00:06]} 68. Kg2 {[%clk 0:00:04]}  Rb3 {[%clk 0:00:06]} 69. Kg3 {[%clk 0:00:04]}  Re6 {[%clk 0:00:07]} 70. Kg2 {[%clk 0:00:05]}  Re2+ {[%clk 0:00:07]} 71. Kg3 {[%clk 0:00:05]}  Rb6 {[%clk 0:00:07]} 72. Rf4 {[%clk 0:00:04]}  Kg7 {[%clk 0:00:08]} 73. Rf5 {[%clk 0:00:05]}  Rc6 {[%clk 0:00:08]} 74. g5 {[%clk 0:00:05]}  fxg5 {[%clk 0:00:08]} 75. Rxg5+ {[%clk 0:00:06]}  Rg6 {[%clk 0:00:08]} 76. Rg4 {[%clk 0:00:07]}  Rxg4+ {[%clk 0:00:08]} 77. fxg4 {[%clk 0:00:07]}  Kg6 {[%clk 0:00:09]} 78. Bd8 {[%clk 0:00:06]}  Ra2 {[%clk 0:00:10]} 79. Bc7 {[%clk 0:00:06]}  Ra3+ {[%clk 0:00:10]} 80. Kh4 {[%clk 0:00:07]}  Ra4 {[%clk 0:00:11]} 81. Bd8 {[%clk 0:00:07]}  Rc4 {[%clk 0:00:11]} 82. Kg3 {[%clk 0:00:06]}  Kf7 {[%clk 0:00:11]} 83. g5 {[%clk 0:00:07]}  Kg6 {[%clk 0:00:11]} 84. Bf6 {[%clk 0:00:07]}  Kf5 {[%clk 0:00:12]} 85. Kf3 {[%clk 0:00:08]}  Ra4 {[%clk 0:00:12]} 86. Ke3 {[%clk 0:00:08]}  Ra3+ {[%clk 0:00:12]} 87. Kd4 {[%clk 0:00:08]}  Ke6 {[%clk 0:00:12]} 88. Ke4 {[%clk 0:00:08]}  Ra4+ {[%clk 0:00:12]} 89. Kd3 {[%clk 0:00:09]}  Kd5 {[%clk 0:00:12]} 90. Ke3 {[%clk 0:00:09]}  Re4+ {[%clk 0:00:13]} 91. Kf3 {[%clk 0:00:09]}  Ra4 {[%clk 0:00:11]} 92. Ke3 {[%clk 0:00:08]}  Ke6 {[%clk 0:00:10]} 93. Kd3 {[%clk 0:00:07]}  Kf5 {[%clk 0:00:11]} 94. Ke3 {[%clk 0:00:07]}  Rb4 {[%clk 0:00:10]} 95. Kd3 {[%clk 0:00:08]}  Re4 {[%clk 0:00:10]} 96. Kc3 {[%clk 0:00:07]}  Re1 {[%clk 0:00:10]} 97. Kd3 {[%clk 0:00:07]}  Re6 {[%clk 0:00:09]} 98. Kd4 {[%clk 0:00:07]}  Rd6+ {[%clk 0:00:09]} 99. Kc5 {[%clk 0:00:08]}  Rd1 {[%clk 0:00:09]} 100. Kc4 {[%clk 0:00:07]}  Ke6 {[%clk 0:00:09]} 101. Kc3 {[%clk 0:00:07]}  Rd7 {[%clk 0:00:09]} 102. Kc4 {[%clk 0:00:07]}  Rc7+ {[%clk 0:00:09]} 103. Kd4 {[%clk 0:00:07]}  Rd7+ {[%clk 0:00:09]} 104. Ke4 {[%clk 0:00:07]}  Ra7 {[%clk 0:00:09]} 105. Kf4 {[%clk 0:00:06]}  Ra4+ {[%clk 0:00:10]} 106. Ke3 {[%clk 0:00:07]}  Kf5 {[%clk 0:00:10]} 107. Kd3 {[%clk 0:00:08]}  Ra3+ {[%clk 0:00:10]} 108. Kd4 {[%clk 0:00:08]}  Rb3 {[%clk 0:00:10]} 109. Kc4 {[%clk 0:00:08]}  Rf3 {[%clk 0:00:10]} 110. Kd4 {[%clk 0:00:08]}  Rf1 {[%clk 0:00:11]} 111. Kd3 {[%clk 0:00:08]}  Re1 {[%clk 0:00:11]} 112. Kd4 {[%clk 0:00:08]}  Re4+ {[%clk 0:00:11]} 113. Kd5 {[%clk 0:00:08]}  Re2 {[%clk 0:00:09]} 114. Kd4 {[%clk 0:00:09]}  Re4+ {[%clk 0:00:08]} 115. Kd5 {[%clk 0:00:09]}  Re8 {[%clk 0:00:08]} 116. Kd6 {[%clk 0:00:09]}  Re6+ {[%clk 0:00:07]} 117. Kd5 {[%clk 0:00:09]}  Ra6 {[%clk 0:00:07]} 118. Kd4 {[%clk 0:00:10]}  Ra4+ {[%clk 0:00:08]} 119. Kd3 {[%clk 0:00:10]}  Kf4 {[%clk 0:00:07]} 120. Kc3 {[%clk 0:00:09]}  Ke4 {[%clk 0:00:06]} 121. g6 {[%clk 0:00:05]}  Ra3+ {[%clk 0:00:06]} 122. Kb4 {[%clk 0:00:05]}  Rg3 {[%clk 0:00:06]} 123. g7 {[%clk 0:00:05]}  Kd5 {[%clk 0:00:06]} 124. Bc3 {[%clk 0:00:02]}  Rg4+ {[%clk 0:00:06]} 125. Kb3 {[%clk 0:00:02]}  Kc5 {[%clk 0:00:05]} 126. Bf6 {[%clk 0:00:02]}  Rg3+ {[%clk 0:00:05]} 127. Kc2 {[%clk 0:00:03]}  Kc4 {[%clk 0:00:05]} 128. Kd2 {[%clk 0:00:03]}  Kd5 {[%clk 0:00:05]} 129. Ke2 {[%clk 0:00:03]}  Rg6 {[%clk 0:00:05]} 130. Bc3 {[%clk 0:00:02]}  Ke4 {[%clk 0:00:06]} 131. Kf2 {[%clk 0:00:02]}  Rg5 {[%clk 0:00:06]} 132. Ke2 {[%clk 0:00:02]}  Rg2+ {[%clk 0:00:06]} 133. Kf1 {[%clk 0:00:02]}  Kf3 {[%clk 0:00:06]} 0-1


[Site "https://www.chess.com"]

[Event "Titled Tuesday Blitz June 28 Late 2022"]
[White "Bortnyk, Olexandr"]
[Black "Van Foreest, Jorden"]
[WhiteFideId "14120828"]
[BlackFideId "1039784"]
[WhiteElo "2723"]
[BlackElo "2609"]
[Result "1-0"]
[Round "08"]
[TimeControl "180+1"]
[Date "2022.06.28"]
[WhiteClock "0:00:25"]
[BlackClock "0:00:45"]

1. d4 {[%clk 0:03:00]}  Nf6 {[%clk 0:02:58]} 2. Nc3 {[%clk 0:03:01]}  d5 {[%clk 0:02:57]} 3. Bf4 {[%clk 0:03:02]}  c5 {[%clk 0:02:55]} 4. e4 {[%clk 0:03:02]}  cxd4 {[%clk 0:02:53]} 5. Qxd4 {[%clk 0:03:02]}  Nc6 {[%clk 0:02:53]} 6. Qa4 {[%clk 0:03:02]}  Nxe4 {[%clk 0:02:52]} 7. Nxe4 {[%clk 0:02:45]}  dxe4 {[%clk 0:02:53]} 8. Ne2 {[%clk 0:02:24]}  e5 {[%clk 0:02:48]} 9. Bxe5 {[%clk 0:02:22]}  Qd5 {[%clk 0:02:48]} 10. Bc3 {[%clk 0:02:15]}  Bc5 {[%clk 0:02:48]} 11. Ng3 {[%clk 0:01:39]}  O-O {[%clk 0:02:36]} 12. Bc4 {[%clk 0:01:35]}  Qg5 {[%clk 0:02:34]} 13. O-O {[%clk 0:01:08]}  Bf5 {[%clk 0:02:13]} 14. Qb5 {[%clk 0:01:01]}  Bg6 {[%clk 0:01:54]} 15. b4 {[%clk 0:01:01]}  Be7 {[%clk 0:01:54]} 16. Qxb7 {[%clk 0:00:45]}  Rfc8 {[%clk 0:01:44]} 17. b5 {[%clk 0:00:43]}  Nd8 {[%clk 0:01:42]} 18. Qd5 {[%clk 0:00:39]}  Rc5 {[%clk 0:01:27]} 19. Qxa8 {[%clk 0:00:37]}  Rxc4 {[%clk 0:01:27]} 20. Ba5 {[%clk 0:00:34]}  Kf8 {[%clk 0:00:49]} 21. Rad1 {[%clk 0:00:32]}  Ke8 {[%clk 0:00:50]} 22. Rd5 {[%clk 0:00:30]}  f5 {[%clk 0:00:46]} 23. Bxd8 {[%clk 0:00:25]}  Bxd8 {[%clk 0:00:45]} 24. Rfd1 {[%clk 0:00:25]} 1-0


[Site "https://www.chess.com"]

[Event "Titled Tuesday Blitz June 28 Late 2022"]
[White "Boruchovsky, Avital"]
[Black "Sadhwani, Raunak"]
[WhiteFideId "2800055"]
[BlackFideId "35093487"]
[WhiteElo "2466"]
[BlackElo "2616"]
[Result "0-1"]
[Round "08"]
[TimeControl "180+1"]
[Date "2022.06.28"]
[WhiteClock "0:00:02"]
[BlackClock "0:00:13"]

1. e4 {[%clk 0:03:00]}  e5 {[%clk 0:03:00]} 2. Nf3 {[%clk 0:03:00]}  Nc6 {[%clk 0:03:01]} 3. Bb5 {[%clk 0:03:00]}  Nge7 {[%clk 0:03:01]} 4. O-O {[%clk 0:02:59]}  Ng6 {[%clk 0:03:01]} 5. c3 {[%clk 0:02:59]}  a6 {[%clk 0:03:01]} 6. Ba4 {[%clk 0:02:58]}  d5 {[%clk 0:03:01]} 7. exd5 {[%clk 0:02:57]}  Qxd5 {[%clk 0:03:02]} 8. h3 {[%clk 0:02:55]}  Be6 {[%clk 0:02:16]} 9. d4 {[%clk 0:02:32]}  O-O-O {[%clk 0:02:16]} 10. Be3 {[%clk 0:02:28]}  Be7 {[%clk 0:01:57]} 11. Nbd2 {[%clk 0:02:16]}  exd4 {[%clk 0:01:57]} 12. cxd4 {[%clk 0:02:16]}  Bf6 {[%clk 0:01:55]} 13. Bb3 {[%clk 0:01:37]}  Qd7 {[%clk 0:01:53]} 14. Bxe6 {[%clk 0:01:37]}  Qxe6 {[%clk 0:01:54]} 15. Nb3 {[%clk 0:01:38]}  Rhe8 {[%clk 0:01:45]} 16. Rc1 {[%clk 0:01:37]}  Nge7 {[%clk 0:01:41]} 17. Qc2 {[%clk 0:01:29]}  Qf5 {[%clk 0:01:32]} 18. Qd2 {[%clk 0:01:19]}  b6 {[%clk 0:01:09]} 19. Rc4 {[%clk 0:01:10]}  Kb7 {[%clk 0:01:02]} 20. Rfc1 {[%clk 0:01:09]}  Rd7 {[%clk 0:01:02]} 21. a4 {[%clk 0:01:08]}  a5 {[%clk 0:01:00]} 22. Qe2 {[%clk 0:00:59]}  Nb4 {[%clk 0:00:46]} 23. R4c3 {[%clk 0:00:15]}  Rb8 {[%clk 0:00:27]} 24. Ne5 {[%clk 0:00:13]}  Bxe5 {[%clk 0:00:23]} 25. dxe5 {[%clk 0:00:13]}  Ned5 {[%clk 0:00:23]} 26. Nxa5+ {[%clk 0:00:05]}  bxa5 {[%clk 0:00:23]} 27. Rc5 {[%clk 0:00:04]}  Kc8 {[%clk 0:00:17]} 28. Rxa5 {[%clk 0:00:03]}  Qxe5 {[%clk 0:00:17]} 29. Ra7 {[%clk 0:00:02]}  Nxe3 {[%clk 0:00:13]} 30. fxe3 {[%clk 0:00:02]}  Nd5 {[%clk 0:00:13]} 0-1


[Site "https://www.chess.com"]

[Event "Titled Tuesday Blitz June 28 Late 2022"]
[White "Capp, Stephen"]
[Black "Romero Ruscalleda, Josep"]
[WhiteFideId "2027089"]
[BlackFideId "2231859"]
[WhiteElo "2152"]
[BlackElo "2259"]
[Result "1/2-1/2"]
[Round "08"]
[TimeControl "180+1"]
[Date "2022.06.29"]
[WhiteClock "0:00:21"]
[BlackClock "0:00:24"]

1. e4 {[%clk 0:03:00]}  g6 {[%clk 0:02:56]} 2. Nc3 {[%clk 0:02:59]}  Bg7 {[%clk 0:02:56]} 3. f4 {[%clk 0:02:59]}  d6 {[%clk 0:02:56]} 4. Nf3 {[%clk 0:02:59]}  c5 {[%clk 0:02:56]} 5. Bb5+ {[%clk 0:02:58]}  Bd7 {[%clk 0:02:55]} 6. Bc4 {[%clk 0:02:58]}  Nc6 {[%clk 0:02:54]} 7. d3 {[%clk 0:02:58]}  a6 {[%clk 0:02:53]} 8. a4 {[%clk 0:02:57]}  Rc8 {[%clk 0:02:44]} 9. Bb3 {[%clk 0:02:56]}  Nf6 {[%clk 0:02:37]} 10. h3 {[%clk 0:02:53]}  Nd4 {[%clk 0:02:27]} 11. Nxd4 {[%clk 0:02:51]}  cxd4 {[%clk 0:02:27]} 12. Ne2 {[%clk 0:02:51]}  e5 {[%clk 0:02:21]} 13. O-O {[%clk 0:02:47]}  O-O {[%clk 0:02:18]} 14. f5 {[%clk 0:02:47]}  d5 {[%clk 0:02:10]} 15. fxg6 {[%clk 0:02:46]}  hxg6 {[%clk 0:02:07]} 16. Ng3 {[%clk 0:02:38]}  Be6 {[%clk 0:02:00]} 17. Bg5 {[%clk 0:02:37]}  Rc6 {[%clk 0:01:43]} 18. exd5 {[%clk 0:02:14]}  Bxd5 {[%clk 0:01:42]} 19. Ne4 {[%clk 0:02:09]}  Bxb3 {[%clk 0:01:33]} 20. cxb3 {[%clk 0:02:07]}  Re8 {[%clk 0:01:21]} 21. Qf3 {[%clk 0:02:01]}  Ree6 {[%clk 0:01:17]} 22. a5 {[%clk 0:01:43]}  Qc7 {[%clk 0:01:16]} 23. h4 {[%clk 0:01:07]}  Nxe4 {[%clk 0:01:12]} 24. Qxe4 {[%clk 0:01:05]}  Rc2 {[%clk 0:00:54]} 25. Rac1 {[%clk 0:00:52]}  Rec6 {[%clk 0:00:54]} 26. Rxc2 {[%clk 0:00:52]}  Rxc2 {[%clk 0:00:54]} 27. h5 {[%clk 0:00:48]}  Qc6 {[%clk 0:00:47]} 28. hxg6 {[%clk 0:00:41]}  fxg6 {[%clk 0:00:46]} 29. Qxc6 {[%clk 0:00:31]}  bxc6 {[%clk 0:00:45]} 30. Rf2 {[%clk 0:00:32]}  Rxf2 {[%clk 0:00:35]} 31. Kxf2 {[%clk 0:00:31]}  Kf7 {[%clk 0:00:35]} 32. Kf3 {[%clk 0:00:31]}  Ke6 {[%clk 0:00:34]} 33. Ke4 {[%clk 0:00:32]}  Bf8 {[%clk 0:00:34]} 34. Bd8 {[%clk 0:00:30]}  Bd6 {[%clk 0:00:30]} 35. g4 {[%clk 0:00:30]}  Bb8 {[%clk 0:00:29]} 36. Bb6 {[%clk 0:00:29]}  Bd6 {[%clk 0:00:29]} 37. Bd8 {[%clk 0:00:26]}  Kd7 {[%clk 0:00:23]} 38. Bf6 {[%clk 0:00:21]}  Ke6 {[%clk 0:00:24]} 39. Bd8 {[%clk 0:00:21]} 1/2-1/2


[Site "https://www.chess.com"]

[Event "Titled Tuesday Blitz June 28 Late 2022"]
[White "Chernomordik, Pavel"]
[Black "Thiel, Thomas"]
[WhiteFideId "2804530"]
[BlackFideId "4615964"]
[WhiteElo "2220"]
[BlackElo "2253"]
[Result "1/2-1/2"]
[Round "08"]
[TimeControl "180+1"]
[Date "2022.06.29"]
[WhiteClock "0:00:04"]
[BlackClock "0:00:08"]

1. e4 {[%clk 0:03:00]}  d5 {[%clk 0:02:59]} 2. exd5 {[%clk 0:03:00]}  Nf6 {[%clk 0:02:59]} 3. Bb5+ {[%clk 0:02:58]}  Nbd7 {[%clk 0:02:57]} 4. c4 {[%clk 0:02:55]}  a6 {[%clk 0:02:56]} 5. Bxd7+ {[%clk 0:02:55]}  Qxd7 {[%clk 0:02:57]} 6. Nf3 {[%clk 0:02:56]}  e6 {[%clk 0:02:55]} 7. dxe6 {[%clk 0:02:54]}  Qxe6+ {[%clk 0:02:55]} 8. Qe2 {[%clk 0:02:54]}  b5 {[%clk 0:02:55]} 9. cxb5 {[%clk 0:02:44]}  axb5 {[%clk 0:02:50]} 10. Nc3 {[%clk 0:02:39]}  b4 {[%clk 0:02:37]} 11. Qxe6+ {[%clk 0:02:37]}  Bxe6 {[%clk 0:02:35]} 12. Nb5 {[%clk 0:02:37]}  Kd7 {[%clk 0:02:34]} 13. Ne5+ {[%clk 0:02:34]}  Kc8 {[%clk 0:02:31]} 14. O-O {[%clk 0:02:26]}  Ra5 {[%clk 0:02:23]} 15. Nc6 {[%clk 0:02:23]}  Rxa2 {[%clk 0:02:15]} 16. Rxa2 {[%clk 0:02:21]}  Bxa2 {[%clk 0:02:16]} 17. d3 {[%clk 0:02:17]}  Kb7 {[%clk 0:01:52]} 18. Ne5 {[%clk 0:02:13]}  c6 {[%clk 0:01:49]} 19. Nd4 {[%clk 0:02:10]}  c5 {[%clk 0:01:46]} 20. Ndf3 {[%clk 0:02:05]}  Bd6 {[%clk 0:01:43]} 21. Bg5 {[%clk 0:02:01]}  Nd5 {[%clk 0:01:40]} 22. Nc4 {[%clk 0:01:59]}  Bc7 {[%clk 0:01:21]} 23. Ra1 {[%clk 0:01:53]}  Ra8 {[%clk 0:01:18]} 24. Re1 {[%clk 0:01:47]}  f6 {[%clk 0:01:17]} 25. Bd2 {[%clk 0:01:44]}  Rd8 {[%clk 0:01:07]} 26. Kf1 {[%clk 0:01:37]}  Nb6 {[%clk 0:01:05]} 27. Nxb6 {[%clk 0:01:31]}  Kxb6 {[%clk 0:01:00]} 28. Ke2 {[%clk 0:01:24]}  Bf7 {[%clk 0:00:56]} 29. Be3 {[%clk 0:01:24]}  Bg6 {[%clk 0:00:53]} 30. d4 {[%clk 0:01:22]}  c4 {[%clk 0:00:51]} 31. Rc1 {[%clk 0:01:21]}  Kb5 {[%clk 0:00:50]} 32. Nd2 {[%clk 0:01:12]}  Bf7 {[%clk 0:00:48]} 33. Ne4 {[%clk 0:01:06]}  Bb6 {[%clk 0:00:46]} 34. Nc5 {[%clk 0:01:05]}  Bxc5 {[%clk 0:00:45]} 35. dxc5 {[%clk 0:01:04]}  Ra8 {[%clk 0:00:42]} 36. Kf3 {[%clk 0:00:54]}  Ra2 {[%clk 0:00:41]} 37. Bd4 {[%clk 0:00:54]}  Kc6 {[%clk 0:00:36]} 38. Re1 {[%clk 0:00:46]}  c3 {[%clk 0:00:32]} 39. bxc3 {[%clk 0:00:45]}  b3 {[%clk 0:00:32]} 40. c4 {[%clk 0:00:41]}  Bxc4 {[%clk 0:00:30]} 41. Re7 {[%clk 0:00:39]}  Bd5+ {[%clk 0:00:29]} 42. Kg3 {[%clk 0:00:35]}  b2 {[%clk 0:00:26]} 43. Bxb2 {[%clk 0:00:34]}  Rxb2 {[%clk 0:00:27]} 44. Rxg7 {[%clk 0:00:34]}  Kxc5 {[%clk 0:00:25]} 45. Rxh7 {[%clk 0:00:25]}  Kd6 {[%clk 0:00:25]} 46. f3 {[%clk 0:00:23]}  Ke6 {[%clk 0:00:24]} 47. Ra7 {[%clk 0:00:21]}  Bc4 {[%clk 0:00:24]} 48. Ra1 {[%clk 0:00:18]}  Be2 {[%clk 0:00:22]} 49. h4 {[%clk 0:00:17]}  Kf5 {[%clk 0:00:21]} 50. Ra5+ {[%clk 0:00:15]}  Kg6 {[%clk 0:00:20]} 51. h5+ {[%clk 0:00:15]}  Kh6 {[%clk 0:00:20]} 52. Kh4 {[%clk 0:00:15]}  Rb4+ {[%clk 0:00:16]} 53. g4 {[%clk 0:00:14]}  Bxf3 {[%clk 0:00:15]} 54. Rf5 {[%clk 0:00:11]}  Rxg4+ {[%clk 0:00:14]} 55. Kh3 {[%clk 0:00:11]}  Rg5 {[%clk 0:00:13]} 56. Rxf3 {[%clk 0:00:09]}  Rxh5+ {[%clk 0:00:13]} 57. Kg4 {[%clk 0:00:09]}  Rg5+ {[%clk 0:00:12]} 58. Kf4 {[%clk 0:00:09]}  Kg6 {[%clk 0:00:12]} 59. Ra3 {[%clk 0:00:08]}  Rb5 {[%clk 0:00:10]} 60. Kg4 {[%clk 0:00:07]}  Rb4+ {[%clk 0:00:09]} 61. Kg3 {[%clk 0:00:06]}  Kg5 {[%clk 0:00:09]} 62. Ra8 {[%clk 0:00:06]}  f5 {[%clk 0:00:09]} 63. Rg8+ {[%clk 0:00:05]}  Kf6 {[%clk 0:00:09]} 64. Rf8+ {[%clk 0:00:04]}  Kg5 {[%clk 0:00:09]} 65. Rg8+ {[%clk 0:00:04]}  Kf6 {[%clk 0:00:09]} 66. Rf8+ {[%clk 0:00:04]}  Kg5 {[%clk 0:00:08]} 67. Rg8+ {[%clk 0:00:04]} 1/2-1/2


[Site "https://www.chess.com"]

[Event "Titled Tuesday Blitz June 28 Late 2022"]
[White "Clarke, Brandon G I"]
[Black "Bayo Milagro, Alvaro"]
[WhiteFideId "400319"]
[BlackFideId "22275240"]
[WhiteElo "2414"]
[BlackElo "2270"]
[Result "1-0"]
[Round "08"]
[TimeControl "180+1"]
[Date "2022.06.28"]
[WhiteClock "0:00:09"]
[BlackClock "0:00:14"]

1. e4 {[%clk 0:03:00]}  e5 {[%clk 0:02:58]} 2. Nf3 {[%clk 0:03:00]}  Nc6 {[%clk 0:02:57]} 3. Bc4 {[%clk 0:03:01]}  Nf6 {[%clk 0:02:57]} 4. Ng5 {[%clk 0:03:00]}  d5 {[%clk 0:02:56]} 5. exd5 {[%clk 0:03:01]}  Na5 {[%clk 0:02:57]} 6. Bb5+ {[%clk 0:03:01]}  Bd7 {[%clk 0:02:53]} 7. Qe2 {[%clk 0:02:59]}  Be7 {[%clk 0:02:53]} 8. Nc3 {[%clk 0:02:51]}  O-O {[%clk 0:02:48]} 9. O-O {[%clk 0:02:45]}  Bxb5 {[%clk 0:02:45]} 10. Qxb5 {[%clk 0:02:46]}  c6 {[%clk 0:02:45]} 11. dxc6 {[%clk 0:02:47]}  Nxc6 {[%clk 0:02:46]} 12. Qe2 {[%clk 0:02:06]}  Nd4 {[%clk 0:02:26]} 13. Qd1 {[%clk 0:02:06]}  Rc8 {[%clk 0:01:43]} 14. d3 {[%clk 0:02:03]}  b5 {[%clk 0:01:41]} 15. a3 {[%clk 0:02:02]}  a5 {[%clk 0:01:40]} 16. Be3 {[%clk 0:01:56]}  b4 {[%clk 0:01:39]} 17. axb4 {[%clk 0:01:56]}  axb4 {[%clk 0:01:40]} 18. Bxd4 {[%clk 0:01:56]}  Qxd4 {[%clk 0:01:38]} 19. Nf3 {[%clk 0:01:53]}  Qc5 {[%clk 0:01:21]} 20. Na4 {[%clk 0:01:49]}  Qxc2 {[%clk 0:01:21]} 21. Nxe5 {[%clk 0:01:48]}  Rfd8 {[%clk 0:01:11]} 22. Qxc2 {[%clk 0:01:24]}  Rxc2 {[%clk 0:01:11]} 23. Rac1 {[%clk 0:01:24]}  Rdc8 {[%clk 0:01:05]} 24. Nc4 {[%clk 0:01:19]}  Rxc1 {[%clk 0:00:51]} 25. Rxc1 {[%clk 0:01:20]}  Nd5 {[%clk 0:00:51]} 26. Re1 {[%clk 0:01:20]}  Bf6 {[%clk 0:00:47]} 27. b3 {[%clk 0:01:17]}  g6 {[%clk 0:00:42]} 28. g3 {[%clk 0:01:17]}  Rd8 {[%clk 0:00:39]} 29. Nc5 {[%clk 0:01:15]}  Nc3 {[%clk 0:00:34]} 30. Kg2 {[%clk 0:00:48]}  Kg7 {[%clk 0:00:33]} 31. Kf3 {[%clk 0:00:27]}  Bd4 {[%clk 0:00:31]} 32. Ne4 {[%clk 0:00:26]}  Ra8 {[%clk 0:00:29]} 33. Ned6 {[%clk 0:00:21]}  Ra2 {[%clk 0:00:27]} 34. Ne3 {[%clk 0:00:15]}  Rb2 {[%clk 0:00:22]} 35. Ndf5+ {[%clk 0:00:16]}  gxf5 {[%clk 0:00:18]} 36. Nxf5+ {[%clk 0:00:17]}  Kf6 {[%clk 0:00:19]} 37. Nxd4 {[%clk 0:00:18]}  Nd5 {[%clk 0:00:19]} 38. Ke4 {[%clk 0:00:17]}  Nc3+ {[%clk 0:00:18]} 39. Kf3 {[%clk 0:00:16]}  Nd5 {[%clk 0:00:18]} 40. Ra1 {[%clk 0:00:14]}  Rd2 {[%clk 0:00:18]} 41. Ra6+ {[%clk 0:00:13]}  Ke7 {[%clk 0:00:17]} 42. Nf5+ {[%clk 0:00:08]}  Ke8 {[%clk 0:00:17]} 43. Nd6+ {[%clk 0:00:08]}  Ke7 {[%clk 0:00:16]} 44. Nf5+ {[%clk 0:00:08]}  Ke8 {[%clk 0:00:17]} 45. Ke4 {[%clk 0:00:09]}  Nf6+ {[%clk 0:00:15]} 46. Rxf6 {[%clk 0:00:08]}  Rxf2 {[%clk 0:00:14]} 47. Ng7+ {[%clk 0:00:09]} 1-0


[Site "https://www.chess.com"]